{"text_format":"3","workbook":"xlsx","n_sheets":1,"sheets":["Sheet1"],"read":"whole","date_system":"1900"}

{"sheet":"Sheet1","index":0,"n_rows":33,"n_cols":4,"rows_kept":33,"merged":[[9,0,9,2],[10,0,11,0],[10,1,11,1],[10,2,11,2],[10,3,11,3],[18,0,18,2],[26,0,26,2],[27,1,28,1],[27,2,28,2],[27,3,28,3],[31,0,31,2],[32,0,32,2]]}
["Perdido Landfill - Fire System Inspection Bid Items","Qty","Price Each","Total Cost"]
["Sprinkler System at HHW",null,null,{"$f":"IF(B2>0,SUM(B2*C2),\"\")","v":""}]
["Fire Pump",null,null,{"$f":"IF(B3>0,SUM(B3*C3),\"\")","v":""}]
["Fire Alarm Control Panel",null,null,{"$f":"IF(B4>0,SUM(B4*C4),\"\")","v":""}]
["Hydrant Testing",null,null,{"$f":"IF(B5>0,SUM(B5*C5),\"\")","v":""}]
["Backflow Preventer Testing",null,null,{"$f":"IF(B6>0,SUM(B6*C6),\"\")","v":""}]
["HHW Dry Chemical System",null,null,{"$f":"IF(B7>0,SUM(B7*C7),\"\")","v":""}]
["Admin and Garage Detection Systems",null,null,""]
["Hourly rate for non-inspection repair and maintenance service calls",null,null,""]
["TOTAL",null,null,{"$f":"SUM(D2:D9)","v":{"v":0,"d":"$0.00"}}]
["Perdido Landfill - Fire and Security Monitoring","Qty","Price Each","Total Cost"]
[]
["Monitor Fire System Panel",null,null,{"$f":"IF(B13>0,SUM(B13*C13),\"\")","v":""}]
["Monitor Security Alarm Accounts:",null,null,""]
["Admin Bldg.",null,null,""]
["Operations Garage",null,null,""]
["Scale House",null,null,""]
["Warehouse",null,null,""]
["TOTAL",null,null,{"$f":"SUM(D13:D18)","v":0}]
["PTS - Fire System Inspection Bid Items","Qty","Price Each","Total Cost"]
["Sprinkler System",null,null,{"$f":"IF(B21>0,SUM(B21*C21),\"\")","v":""}]
["Control Room (Riser, Air Compressor, etc.)",null,null,{"$f":"IF(B22>0,SUM(B22*C22),\"\")","v":""}]
["Fire Alarm Control Panel",null,null,{"$f":"IF(B23>0,SUM(B23*C23),\"\")","v":""}]
["Hydrant Testing",null,null,{"$f":"IF(B24>0,SUM(B24*C24),\"\")","v":""}]
["Backflow Preventer Testing",null,null,{"$f":"IF(B25>0,SUM(B25*C25),\"\")","v":""}]
["Hourly rate for non-inspection repair and maintenance service calls",null,null,{"$f":"IF(B26>0,SUM(B26*C26),\"\")","v":""}]
["TOTAL",null,null,0]
[null,"Qty","Price Each","Total Cost"]
["PTS - Fire and Security Monitoring"]
["Monitor Fire System Panel",null,null,{"$f":"IF(B30>0,SUM(B30*C30),\"\")","v":""}]
["Monitor Security Alarm Account at Scale House",null,null,{"$f":"IF(B31>0,SUM(B31*C31),\"\")","v":""}]
["TOTAL",null,null,{"v":0,"d":"$0.00"}]
["GRAND TOTAL",null,null,{"$f":"SUM(D10+D19+D27+D32)","v":{"v":0,"d":"$0.00"}}]